Cogmind - Beta 9.3 @@@ ROGUE MODE // 2019.12.22 @ 11:18:21 // Winter2019/RPGLIKE Player: Horse Result: Destroyed by Y-45 Defender via exploding Fusion Modulator Performance ------------- Evolutions (1) 500 Regions Visited (3) 600 Robots Destroyed (70) 350 Value Destroyed (1359) 1359 Prototype IDs (10) 200 Alien Tech Used (0) 0 Bonus (-861) -861 TOTAL SCORE: 2148 Bonus ------- Friendly Fire -861 Cogmind --------- Core Integrity 0/600 Matter 223/300 Energy 160/160 System Corruption 0% Temperature Cool (12) Movement Hovering (66) Location -9/Materials Parts ------- > --- POWER (1) -------- Light Nuclear Core > --- PROPULSION (2) --- Improved Hover Unit Combat Airjet > --- UTILITY (3) ------ Improved Light Armor Plating Hacking Suite Hacking Suite > --- WEAPON (1) ------- Slug Cannon > --- INVENTORY (4) ---- YI-UF0's Bottomless Matter Pit (1440) High-powered Tractor Beam YI-UF0's Doublenader Improved Datajack Peak State ------------ > --- POWER ------------ Light Nuclear Core > --- PROPULSION ------- Carbon-fiber Leg Combat Airjet > --- UTILITY ---------- Improved Light Armor Plating Hacking Suite Hacking Suite > --- WEAPON ----------- Slug Cannon > --- INVENTORY -------- YI-UF0's Bottomless Matter Pit EM Pulse Gun YI-UF0's Doublenader Improved Datajack [Rating: 25] Favorites ----------- Power Light Ion Engine Engine Light Ion Engine Power Core Light Nuclear Core Propulsion Aluminum Leg Leg Aluminum Leg Hover Unit Combat Airjet Utility Hacking Suite Device Advanced Heat Sink Storage YI-UF0's Bottomless Matter Pit Hackware Hacking Suite Protection Improved Light Armor Plating Weapon EM Pulse Gun Energy Gun EM Pulse Gun Ballistic Cannon Slug Cannon Launcher Grenade Launcher Special Melee Weapon Improved Datajack Build | -11 -10 -10 -9 ------- Run | Scr Mat Min Mat Slots Evolved 3 | 1 1 1 . Power . | . . . . Propulsion 1 | 1 . . . Utility 2 | . 1 1 . Weapon . | . . . . Parts Attached 36 | 4 7 14 11 Power 2 | 1 . 1 . Engine 1 | 1 . . . Core 1 | . . 1 . Reactor . | . . . . Propulsion 8 | 2 . 3 3 Treads . | . . . . Leg 5 | 2 . 2 1 Wheel . | . . . . Hover 3 | . . 1 2 Flight . | . . . . Utility 6 | . 2 4 . Device 1 | . . 1 . Storage 1 | . . 1 . Processor . | . . . . Hackware 2 | . 2 . . Protection 2 | . . 2 . Artifact . | . . . . Weapon 20 | 1 5 6 8 Energy Gun 7 | 1 3 3 . Energy Cannon . | . . . . Ballistic Gun . | . . . . Ballistic Cannon 3 | . . . 3 Launcher 9 | . 2 3 4 Special Weapon . | . . . . Impact Weapon . | . . . . Slashing Weapon . | . . . . Piercing Weapon . | . . . . Special Melee Weapon 1 | . . . 1 Unidentified Prototypes 2 | . . 2 . Parts Lost . | . . . . Power . | . . . . Propulsion . | . . . . Utility . | . . . . Weapon . | . . . . Highest Loss Streak . | . . . . Average Slot Usage (%) 98 | . 95 99 100 Engine 9 | . 19 3 . Core 6 | . . 10 14 Leg 28 | . 39 26 3 Hover 4 | . . 1 24 Hackware 23 | . 17 28 28 Protection 7 | . . 12 14 Energy Gun 13 | . 17 13 2 Ballistic Cannon 1 | . . . 7 Launcher 1 | . 1 . 1 Naked Turns . | . . . . Heaviest Build 15 | 5 6 12 15 Greatest Support 30 | 20 20 30 30 Greatest Overweight (x) . | . . . . Average Overweight (x) . | . . . . Largest Inventory Capacity 4 | . 1 4 4 Average Capacity 2 | . . 3 4 Most Carried 4 | . 1 4 4 Average Carried 2 | . . 3 3 Final Capacity 4 | . 1 4 4 Final Carried 4 | . 1 4 4 Class Distribution -------------------- 44% | Hacker-Mutant 40% | Mutant 13% | Wizard-Mutant Dominant Class ---------------- Mutant | -10/Materials Hacker-Mutant | -10/Mines Wizard-Mutant | -9/Materials Resources | -11 -10 -10 -9 ----------- Run | Scr Mat Min Mat Matter Collected 2508 | 202 138 1813 355 Remotely . | . . . . Salvage Created 1503 | . 634 621 248 Parts 102 | . 49 28 25 Haulers Intercepted . | . . . . Recyclers Shooed 4 | . 1 3 . Parts Field Recycled . | . . . . Retrieved Matter . | . . . . Parts Self-Destructed . | . . . . Prevented . | . . . . Kills | -11 -10 -10 -9 ------- Run | Scr Mat Min Mat Combat Hostiles Destroyed 57 | . 18 28 11 Guns 26 | . 16 10 . Cannons 4 | . . . 4 AOE 26 | . 1 18 7 Classes Destroyed 8 | . 4 3 1 Tunneler 1 | . . 1 . Recycler 4 | . . 4 . Operator 3 | . 3 . . Watcher 4 | . 2 . 2 Swarmer 13 | . 6 3 4 Grunt 23 | . 12 7 4 Sentry 3 | . . . 3 Assembled 18 | . . 18 . Best Kill Streak 17 | . 3 17 5 Combat Bots Only 16 | . 3 16 5 Max Kills in Single Turn 5 | . 1 5 3 Gunslinging . | . . . . Exploded 4 | . 1 4 3 Melee . | . . . . Uniques/NPCs Destroyed 1 | . . 1 . YI-UF0 (-10/Mines) Combat | -11 -10 -10 -9 -------- Run | Scr Mat Min Mat Damage Taken 2142 | . 918 671 553 Core 1724 | . 727 526 471 Absorbed by Shields . | . . . . Redirected to Core 1271 | . 619 370 282 Core Remaining (%) 82 | 100 . 64 . Volleys Fired 253 | . 120 99 34 Largest 1 | . 1 1 1 Hottest 70 | . 40 70 70 Shots Fired 253 | . 120 99 34 Gun 205 | . 117 87 1 Cannon 30 | . . . 30 Launcher 18 | . 3 12 3 Special . | . . . . Kinetic 30 | . . . 30 Thermal . | . . . . Explosive 18 | . 3 12 3 Electromagnetic 205 | . 117 87 1 Robot Hit Streak 8 | . 7 8 4 Robot Miss Streak 4 | . 3 4 3 Penetration Max . | . . . . Secondary Targets . | . . . . Shots Hit Robots 148 | . 72 58 18 Core Hits 123 | . 35 68 20 Critical Hits 2 | . . . 2 Critical Kills 1 | . . . 1 Critical Parts Destroyed 1 | . . . 1 Melee Attacks 1 | . . . 1 Impact . | . . . . Slashing . | . . . . Piercing . | . . . . Sneak Attacks 1 | . . . 1 Combat Hostiles . | . . . . Follow-up Attacks . | . . . . Damage Inflicted 4313 | . 1405 1955 953 Guns 1745 | . 1088 657 . Cannons 571 | . . . 571 Explosions 1997 | . 317 1298 382 Melee . | . . . . Ramming . | . . . . Kinetic 571 | . . . 571 Thermal 212 | . 141 71 . Explosive 1785 | . 176 1227 382 Electromagnetic 1745 | . 1088 657 . Impact . | . . . . Slashing . | . . . . Piercing . | . . . . Highest Corruption 1 | . 1 1 . Average Corruption 1 | . 1 1 . Corruption Purged . | . . . . Effects 9 | . 3 6 . Message Errors 4 | . 2 2 . Energy Discharges 1 | . . 1 . Data Loss (minor) 4 | . 1 3 . Overload Shots . | . . . . Overflow Damage 61 | . 19 35 7 Projectiles 4 | . . . 4 Explosions 57 | . 19 35 3 Melee . | . . . . Knockbacks 1 | . . . 1 Impact . | . . . . Kinetic 1 | . . . 1 Secondary . | . . . . Self-Inflicted Damage 161 | . 19 124 18 Shots 7 | . 2 4 1 Rammed . | . . . . Targets Rammed . | . . . . Kicked . | . . . . Crushed . | . . . . Highest Temperature 261 | . 114 240 261 Average Temperature 64 | . 32 74 76 Received Heat Transfer 759 | . 369 207 183 Effects 1 | . . 1 . Energy Bleed 1 | . . 1 . Siege Activations . | . . . . Robots Corrupted 2 | . 1 1 . Combat Hostiles 1 | . 1 . . Parts Fried 5 | . 2 3 . Impact Corruptions . | . . . . Robots Melted . | . . . . Combat Hostiles . | . . . . Parts Melted . | . . . . Heat Transferred 350 | . 200 150 . Parts Sabotaged . | . . . . Parts Stolen . | . . . . Parts Stripped . | . . . . Power Chain Reactions 6 | . 4 2 . Missiles Intercepted . | . . . . Alert | -11 -10 -10 -9 ------- Run | Scr Mat Min Mat Peak Influence 392 | . 392 130 261 Average Influence 125 | . 211 58 99 Maximum Alert Level 1 | . 1 . 1 Low Security (%) 74 | 100 46 100 74 Level 1 25 | . 53 . 25 Level 2 . | . . . . Level 3 . | . . . . Level 4 . | . . . . Level 5 . | . . . . High Security . | . . . . Max Security . | . . . . Squads Dispatched 10 | . 5 3 2 Investigation 7 | . 3 3 1 Extermination . | . . . . Reinforcement 3 | . 2 . 1 Assault . | . . . . Garrison . | . . . . Intercept . | . . . . Construction Impeded . | . . . . Haulers Reinforced . | . . . . Stealth | -11 -10 -10 -9 --------- Run | Scr Mat Min Mat Distress Signals 2 | . 1 . 1 Communications Jammed . | . . . . Distress Signals . | . . . . Times Spotted 81 | . 33 29 19 Peak Tracking Total 11 | . 4 11 6 Tactical Retreats 6 | . 3 2 1 Traps | -11 -10 -10 -9 ------- Run | Scr Mat Min Mat Traps Triggered 5 | . 5 . . Indirectly . | . . . . Trap Hack Attempts 21 | . . . 21 Triggered 1 | . . . 1 Disarmed . | . . . . Reprogrammed 12 | . 6 . 6 Reused . | . . . . Traps Extracted . | . . . . Installed . | . . . . Triggered . | . . . . Machines | -11 -10 -10 -9 ---------- Run | Scr Mat Min Mat Machines Disabled 14 | . 6 2 6 Max in Single Turn 2 | . 1 1 2 Machines Sabotaged . | . . . . Garrisons Compromised . | . . . . Overloaded Fab Kills . | . . . . Fab Network Shutdowns . | . . . . Hacking | -11 -10 -10 -9 --------- Run | Scr Mat Min Mat Machines Accessed 19 | . 9 2 8 Terminals 12 | . 6 1 5 Fabricators . | . . . . Repair Stations 1 | . 1 . . Recycling Units 3 | . 2 . 1 Scanalyzers 2 | . . . 2 Garrison Access . | . . . . Total Hacks 72 | . 25 9 38 Successful 56 | . 15 6 35 Failed 15 | . 10 2 3 Catastrophic . | . . . . Database Lockouts 1 | . . 1 . Manual 35 | . 19 6 10 Terminals 51 | . 19 8 24 Fabricators . | . . . . Repair Stations 2 | . 2 . . Recycling Units 7 | . 4 . 3 Scanalyzers 11 | . . . 11 Garrison Access . | . . . . Terminal Hacks 30 | . 5 6 19 Robot Analysis 4 | . . 1 3 Prototype ID Bank 5 | . 2 . 3 Open Door 1 | . . 1 . Level Access Points 1 | . . . 1 Branch Access Points 1 | . . . 1 Machine Index 2 | . . . 2 Terminal Index 1 | . 1 . . Alert Level 2 | . . . 2 Unreport Threat 5 | . 1 2 2 Locate Traps 1 | . . . 1 Reprogram Traps 1 | . 1 . . Patrol Status 1 | . . 1 . Registered Components 1 | . . . 1 Registered Prototypes 1 | . . . 1 Zone Layout 3 | . . 1 2 Fabricator Hacks . | . . . . Repair Station Hacks 2 | . 2 . . Scan Component 1 | . 1 . . Repair 1 | . 1 . . Recycling Unit Hacks 2 | . 1 . 1 Retrieve Components 2 | . 1 . 1 Scanalyzer 11 | . . . 11 Insert Component 6 | . . . 6 Analyze 5 | . . . 5 Garrison Access Hacks . | . . . . Unauthorized Hacks 25 | . 17 . 8 Terminals 7 | . 5 . 2 Track 1 | . . . 1 Assimilate 1 | . 1 . . Botnet 4 | . 3 . 1 Operators 1 | . 1 . . Fabricators . | . . . . Repair Stations . | . . . . Recycling Units 4 | . 2 . 2 Reject 3 | . 2 . 1 Recyclers 1 | . . . 1 Scanalyzers . | . . . . Garrison Access . | . . . . Data Cores Recovered . | . . . . Used . | . . . . Hacking Detections 13 | . 7 1 5 Full Trace Events 9 | . 7 1 1 Feedback Events . | . . . . Feedback Blocked . | . . . . Robot Schematics Acquired . | . . . . Robots Built . | . . . . Matter . | . . . . Time . | . . . . Total Robot Build Rating . | . . . . Part Schematics Acquired 5 | . . . 5 Parts Built . | . . . . Matter . | . . . . Time . | . . . . Total Part Build Rating . | . . . . Parts Repaired 1 | . 1 . . Time 26 | . 26 . . Parts Recycled . | . . . . Recycled Matter . | . . . . Retrieved Matter . | . . . . Retrieved Components 5 | . 2 . 3 Parts Scanalyzed 5 | . . . 5 Part Schematics Acquired 5 | . . . 5 Parts Damaged . | . . . . Bothacking | -11 -10 -10 -9 ------------ Run | Scr Mat Min Mat Used RIF Installer . | . . . . Robots Hacked 1 | . . . 1 Non-combat 1 | . . . 1 Combat . | . . . . Robot Hacks Applied 1 | . . . 1 parse_system 1 | . . . 1 Relay Couplers Released . | . . . . Robots Rewired . | . . . . Allies Hacked . | . . . . Hacks Repelled . | . . . . Allies | -11 -10 -10 -9 -------- Run | Scr Mat Min Mat Total Allies 2 | . 1 1 . Largest Group 2 | . 1 2 1 Highest-Rated Group 41 | . 10 41 10 Highest-Rated Ally 31 | . 10 31 10 Total Orders 42 | . 6 24 12 STAY 9 | . . 7 2 GOTO 16 | . 4 7 5 FOLLOW 17 | . 2 10 5 Ally Attacks 2 | . . 2 . Total Damage 21 | . . 21 . Kills 1 | . . 1 . Allies Corrupted . | . . . . Allies Melted . | . . . . Intel | -11 -10 -10 -9 ------- Run | Scr Mat Min Mat Robot Analysis Total 4 | . . 1 3 Derelict Logs Recovered 1 | . . 1 . Drone Launches . | . . . . Drone Recoveries . | . . . . Exploration | -11 -10 -10 -9 ------------- Run | Scr Mat Min Mat Turns Passed 3142 | 65 1279 1344 454 Spaces Moved 2104 | 53 698 917 436 Core 5 | 5 . . . Treads . | . . . . Legs 1510 | 48 698 764 . Wheels . | . . . . Hover 589 | . . 153 436 Flight . | . . . . Fastest Speed 50 | 50 120 90 66 Average Speed 107 | 113 120 114 71 Slowest Speed 120 | 120 120 120 90 Overloaded Moves . | . . . . Propulsion Burnouts . | . . . . Robots Hopped . | . . . . Cave-ins Triggered . | . . . . Exploration Rate (%) 60 | 4 97 99 40 Regions Visited 3 Branch Regions 1 Pre-discovered Areas . | . . . . Known Exits Taken . | . . . . Unknown Exits Taken 3 | 1 1 1 . Scrap Searched 1 | . . 1 . Spaces Dug . | . . . . Terrain Destroyed 201 | . 39 126 36 Melee . | . . . . Projectile 7 | . . . 7 AOE 194 | . 39 126 29 Actions | -11 -10 -10 -9 --------- Run | Scr Mat Min Mat Total 2719 | 56 1016 1104 543 Wait 222 | . 159 35 28 Move 2101 | 52 697 916 436 Hop . | . . . . Pick Up 6 | . 1 3 2 Fast Attach 18 | 4 3 8 3 Attach 2 | . . . 2 Detach 3 | . . 1 2 Swap 16 | . 4 6 6 Drop 12 | . . 7 5 Fire 253 | . 120 99 34 Melee 1 | . . . 1 Ram . | . . . . Kick . | . . . . Crush . | . . . . Escape Stasis . | . . . . Rewire . | . . . . Trap 21 | . . . 21 Miscellaneous 64 | . 32 29 3 Route ------- -11/Scrapyard -10/Materials (discovered 4 exits: *Mat x3 / *Min) -10/Mines (discovered 2 exits: *Mat x2) -9/Materials (discovered 5 exits: *Mat x3 / *Min x2) History --------- Turn | Location | Event 7 | -11/Scrapyard | Discovered new exit (range 16) 9 | -11/Scrapyard | Upgraded with Propulsion slot (x1) 66 | -11/Scrapyard | Entered Materials 300 | -10/Materials | Build established: Mutant 358 | -10/Materials | Discovered new exit (range 6) 395 | -10/Materials | Discovered new exit (range 8) 528 | -10/Materials | Reached level 2 628 | -10/Materials | Discovered new exit (range 15) 912 | -10/Materials | Discovered new exit (range 8) 981 | -10/Materials | Repaired EM Pulse Gun 1177 | -10/Materials | Upgraded with Utility slot (x1) 1345 | -10/Materials | Entered Mines 1345 | -10/Mines | Accompanied by 1 ally 1347 | -10/Mines | Reached level 3 1405 | -10/Mines | Assisted by bots powering up and referring to "LRC-V3" 1416 | -10/Mines | Destroyed YI-UF0 1440 | -10/Mines | Found Prototype Launcher 1456 | -10/Mines | Upgraded with Utility slot (x1) 1456 | -10/Mines | Found Prototype Storage 1456 | -10/Mines | Identified YI-UF0's Bottomless Matter Pit 1485 | -10/Mines | Learned location of 1 exit from Materials 1518 | -10/Mines | Assembled infested the area 1522 | -10/Mines | Identified YI-UF0's Doublenader 1583 | -10/Mines | Destroyed 16 combat bots 1652 | -10/Mines | A weapon hastily lodged in a ceiling crevice suddenly fell to the ground 1668 | -10/Mines | Core integrity fell below 50% 1700 | -10/Mines | Central database locked down 1818 | -10/Mines | Met a Derelict shopkeep closing up shop 1849 | -10/Mines | Build established: Hacker-Mutant 2092 | -10/Mines | Discovered new exit (range 7) 2093 | -10/Mines | Received a Mining Laser from a helpful Derelict 2320 | -10/Mines | Discovered new exit (range 8) 2475 | -10/Mines | Reached level 4 2689 | -10/Mines | Entered Materials 2689 | -9/Materials | Accompanied by 1 ally 2690 | -9/Materials | Identified exit to Mines 2691 | -9/Materials | Reached level 5 2858 | -9/Materials | Discovered new exit (range 16) 2865 | -9/Materials | Core integrity fell below 50% 3008 | -9/Materials | Reached level 6 3031 | -9/Materials | Build established: Wizard-Mutant 3048 | -9/Materials | Core integrity fell below 20% 3085 | -9/Materials | Identified exit to Materials 3143 | -9/Materials | Destroyed by Y-45 Defender via exploding Fusion Modulator Last Messages --------------- >>Access(Main) Found 3 level access points to Materials: (12,80) (14,10) (84,92) Map updated. 03097_ Connecting with Terminal... >>Prototypes Downloading prototype IDs... Imp. Flight Unit Imp. VTOL Module Imp. Assault Rifle >>Layout(Zone) Retrieving Zone 4R layout... Downloaded map data. >>Trojan(Track) Trojan loaded successfully. Testing... Tracking enabled and active. 03143_ Fusion Modulator explodes. Map ----- +----------------------------------------------------+ | ??????????+ > = !T + #????????# | | ??????????# ##[[= #+#########?????# | | ??????????# ?????#"#r #?# ####### | | ?????????????????# # #?# T | | ???###############"# #?# "" | | ???# # [ = # #?# | | ???#""" # =""" # #?# ########+#### | | ???#""" # "Y" # #?### ###??# # | | ???#""" # " " + #???# #????# "" "" # " | | ???# # # #???# # ???# """"" # T | | ?#######+########### ##### # ???# """"" # " | | + # ???# """"" + | | #### ###########+##### #### ???# """"" # | | #??# #??????# #?# #??? ???# """"" # | | #??# #??????# """ #?# #??# ???# ?""""" ## # | | #??# #??????# "" ###+#### ?????? ## # | | #??# ######## """ # t ###??????######## # | | #??# + # #?#?????????????? # | | #??# # # """u#?#?????????????? # | | #??# ######## """ #?#?#???????????? | | #####??# + """ ### #???????????? | | ???????# ####T####### ;## ###?????????? | | #####??# #??###?????# ; u #?????????? > | | #??# #??????????# ; #?????????? | | #??# #??????????# ; +??????????? | | #### #?########## @ # #??????????? ?? | | "" + #?########## = # #?????????????? | | "" ####+##+#?########## ## ##?????????????? | | "T #[| #?################# #??????????????? | | "" #] #?########## # #??????????????? | | "" # #?########## + #??????????????? | | # [ #?########## # ? #??????????????? | | #############?########## # ? #??????????????? | | # ######### ######+##### ??#??????????????? | | # """ # ?????????????????? | | # """ # ?????????????????? | | # """ # ?????????????????? | | # + ####????????????????????????????????? | | # # #???????????????????????????????????? | | # # ####????????????????????????????????? | | # # ## ?????????????????????????????/??? | | # # ## ????????????????????????????????? | | #Y######## ## ????????????????????????????????? | | ###??????# ## ????????????????????????????????? | | ?????????????????????????????????????????????????? | | ?????????????????????????????????????????????????? | | ?????????????????????????????????????????????????? | | ?????????????????????????????????????????????????? | | ?????????????????????????????????????????????????? | | ?????????????????????????????????????????????????? | +----------------------------------------------------+ Best States ------------- Heat Dissipation 25 Energy Generation 14 Energy Capacity 160 Matter Stores 300 Matter Capacity 300 Sight Range 16 Terrain Scan Density 10 Armor Coverage 150 Weapon Shielding 33 Evasion (%) 51 Offensive Hacking 40 Defensive Hacking 20 Item Schematics ----------------- Slug Cannon | -9/Materials | Scanalyzed Cmb. Airjet | -9/Materials | Scanalyzed Carbon-fiber Leg | -9/Materials | Scanalyzed Hpw. Tractor Beam | -9/Materials | Scanalyzed Imp. Datajack | -9/Materials | Scanalyzed Robot Schematics ------------------ None Fabricated ------------ Nothing Alien Tech Used ----------------- None Achievements -------------- None Challenges ------------ None RPGLIKE | -11 -10 -10 -9 --------- Run | Scr Mat Min Mat Levels Raised 5 | . 1 2 2 XP Earned 11065 | 3000 2695 1850 3520 XP Spent 8900 | 500 750 4350 3300 Upgrades 15 | 1 2 8 4 Propulsion Slot 1 | 1 . . . Utility Slot 2 | . 1 1 . Inventory Capacity 4 | . 1 3 . Hack Attack % 4 | . . 2 2 Hack Defense % 4 | . . 2 2 Protomatter Created 538 | . 249 237 52 Integrity Restored 1256 | . 615 590 51 Core 1090 | . 587 452 51 Parts 166 | . 28 138 . Protomatter Decayed 99 | . 16 53 30 Game ------ Seed PulseDataCapacitor Manual? 0 Play Time 00:32:05 Cumulative 831.2 hours Start 2019.12.22 @ 10:44:56 End 2019.12.22 @ 11:18:21 Sessions 1 Manual Loads 0 Difficulty Rogue Special Mode Winter2019/RPGLIKE Game No. 301 Rogue 301 Adventurer 0 Explorer 0 Win Type - Total 12 Types 11/0/1/0/0/0/0 Lore% 76 Gallery% 86 Achievement% 68 Wizard Run 0 Options --------- ASCII 0 Keyboard 1 Movement Numpad Keybinds 0 Fullscreen 2 Font 18/SmallcapsGlow Map View 112x50 Tactical HUD 1 Map Filters NONE Filters NONE Steam 1 RUN: 4a6dc8bf-63b5-48b7-a86e-f1c79c21bbf9